fUST/lending_fUST_20240930
["ID","MTS","AMOUNT","RATE_DAILY","PERIOD"]
[339531629,1727681446376,-502.86381733,0.00014123,2]
[339531630,1727681446386,-500.0,0.00014123,2]
[339531631,1727681446397,-500.0,0.00014123,2]
[339531632,1727681446408,-2355.39,0.00014123,2]
[339531633,1727681446418,-1759.74,0.00014123,2]
[339531634,1727681446428,-500.0,0.00014123,2]
[339531635,1727681446438,-500.0,0.00014123,2]
[339531636,1727681446448,-261.95752589,0.00014123,2]
[339531637,1727681446458,-500.0,0.00014123,2]
[339531638,1727681446468,-500.0,0.00014123,2]
[339531639,1727681446479,-500.0,0.00014123,2]
[339531640,1727681446489,-500.0,0.00014123,2]
[339531641,1727681446499,-500.0,0.00014123,2]
[339531642,1727681446509,-502.74560299,0.00014123,2]
[339531643,1727681446518,-428.43598929,0.00014123,2]
[339531644,1727681446529,-500.0,0.00014123,2]
[339531645,1727681446539,-500.0,0.00014123,2]
[339531646,1727681446549,-500.0,0.00014123,2]
[339531647,1727681446558,-730.97,0.00014123,2]
[339531648,1727681446568,-500.0,0.00014123,2]
[339531649,1727681446578,-500.0,0.00014123,2]
[339531650,1727681446588,-656.74,0.00014123,2]
[339531651,1727681446598,-500.0,0.00014123,2]
[339531652,1727681446608,-500.0,0.00014123,2]
[339531653,1727681446618,-500.0,0.00014123,2]
[339531654,1727681446629,-500.0,0.00014123,2]
[339531655,1727681446639,-500.0,0.00014123,2]
[339531656,1727681446649,-500.0,0.00014123,2]
[339531657,1727681446659,-500.0,0.00014123,2]
[339531658,1727681446669,-500.0,0.00014123,2]
[339531659,1727681446680,-500.0,0.00014123,2]
[339531660,1727681446690,-500.0,0.00014123,2]
[339531661,1727681446700,-500.0,0.00014123,2]
[339531662,1727681446710,-500.0,0.00014123,2]
[339531663,1727681446720,-534.3,0.00014123,2]
[339531664,1727681446730,-500.0,0.00014123,2]
[339531665,1727681446740,-500.0,0.00014123,2]
[339531666,1727681446750,-500.0,0.00014123,2]
[339531667,1727681446759,-500.0,0.00014123,2]
[339531668,1727681446769,-500.0,0.00014123,2]
[339531669,1727681446779,-500.0,0.00014123,2]
[339531670,1727681446789,-500.0,0.00014123,2]
[339531671,1727681446803,-500.0,0.00014123,2]
[339531672,1727681446814,-500.0,0.00014123,2]
[339531673,1727681446824,-500.0,0.00014123,2]
[339531674,1727681446834,-500.0,0.00014123,2]
[339531675,1727681446846,-500.0,0.00014123,2]
[339531676,1727681446856,-575.15948463,0.00014123,2]
[339531677,1727681446866,-500.0,0.00014123,2]
[339531678,1727681446880,-516.59670669,0.00014123,2]
[339531679,1727681446890,-500.0,0.00014123,2]
[339531680,1727681446900,-500.0,0.00014123,2]
[339531681,1727681446910,-500.0,0.00014123,2]
[339531682,1727681446920,-500.0,0.00014123,2]
[339531683,1727681446930,-500.0,0.00014123,2]
[339531684,1727681446941,-547.6,0.00014123,2]
[339531685,1727681446951,-500.0,0.00014123,2]
[339531686,1727681446962,-500.0,0.00014123,2]
[339531687,1727681446972,-500.0,0.00014123,2]
[339531688,1727681446984,-500.0,0.00014123,2]
[339531689,1727681446994,-657.07,0.00014123,2]
[339531690,1727681447004,-500.0,0.00014123,2]
[339531691,1727681447015,-500.0,0.00014123,2]
[339531692,1727681447025,-500.0,0.00014123,2]
[339531693,1727681447036,-688.07,0.00014123,2]
[339531694,1727681447047,-500.0,0.00014123,2]
[339531695,1727681447057,-500.0,0.00014123,2]
[339531696,1727681447068,-757.25,0.00014123,2]
[339531697,1727681447079,-500.0,0.00014123,2]
[339531698,1727681447089,-500.0,0.00014123,2]
[339531699,1727681447100,-500.0,0.00014123,2]
[339531700,1727681447111,-542.17,0.00014123,2]
[339531701,1727681447121,-895.7,0.00014123,2]
[339531702,1727681447132,-500.0,0.00014123,2]
[339531703,1727681447143,-500.0,0.00014123,2]
[339531704,1727681447153,-500.0,0.00014123,2]
[339531705,1727681447164,-500.0,0.00014123,2]
[339531706,1727681447174,-500.0,0.00014123,2]
[339531707,1727681447184,-500.0,0.00014123,2]
[339531708,1727681447194,-500.0,0.00014123,2]
[339531709,1727681447205,-500.0,0.00014123,2]
[339531710,1727681447215,-500.0,0.00014123,2]
[339531711,1727681447225,-585.54,0.00014123,2]
[339531712,1727681447235,-754.04,0.00014123,2]
[339531713,1727681447246,-500.0,0.00014123,2]
[339531714,1727681447256,-625.56,0.00014123,2]
[339531715,1727681447267,-500.0,0.00014123,2]
[339531716,1727681447277,-1584.19,0.00014123,2]
[339531717,1727681447287,-500.0,0.00014123,2]
[339531718,1727681447297,-500.0,0.00014123,2]
[339531719,1727681447307,-500.0,0.00014123,2]
[339531720,1727681447317,-637.44,0.00014123,2]
[339531721,1727681447327,-307.23137465,0.00014123,2]
[339531722,1727681447337,-500.0,0.00014123,2]
[339531723,1727681447351,-500.0,0.00014123,2]
[339531724,1727681447361,-504.96277085,0.00014123,2]
[339531725,1727681447371,-500.0,0.00014123,2]
[339531726,1727681447381,-500.0,0.00014123,2]
[339531727,1727681447391,-500.0,0.00014123,2]
[339531728,1727681447401,-500.0,0.00014123,2]
[339531729,1727681447411,-500.0,0.00014123,2]
[339531730,1727681447424,-673.65,0.00014123,2]
[339531731,1727681447434,-500.0,0.00014123,2]
[339531732,1727681447444,-500.0,0.00014123,2]
[339531733,1727681447455,-516.43,0.00014123,2]
[339531734,1727681447465,-500.0,0.00014123,2]
[339531735,1727681447476,-1265.9,0.00014123,2]
[339531736,1727681447486,-510.68,0.00014123,2]
[339531737,1727681447496,-500.0,0.00014123,2]
[339531738,1727681447506,-500.0,0.00014123,2]
[339531739,1727681447516,-500.0,0.00014123,2]
[339531740,1727681447526,-1872.45,0.00014123,2]
[339531741,1727681447537,-500.0,0.00014123,2]
[339531742,1727681447547,-500.0,0.00014123,2]
[339531743,1727681447557,-500.0,0.00014123,2]
[339531744,1727681447567,-500.0,0.00014123,2]
[339531745,1727681447577,-500.0,0.00014123,2]
[339531746,1727681447587,-500.0,0.00014123,2]
[339531747,1727681447598,-500.0,0.00014123,2]
[339531748,1727681447608,-500.0,0.00014123,2]
[339531749,1727681447617,-500.0,0.00014123,2]
[339531750,1727681447627,-500.0,0.00014123,2]
[339531751,1727681447638,-500.0,0.00014123,2]
[339531752,1727681447647,-500.0,0.00014123,2]
[339531753,1727681447657,-1050.2,0.00014123,2]
[339531754,1727681447667,-500.0,0.00014123,2]
[339531755,1727681447677,-578.15,0.00014123,2]
[339531756,1727681447687,-500.0,0.00014123,2]
[339531757,1727681447697,-606.81,0.00014123,2]
[339531758,1727681447707,-563.51,0.00014123,2]
[339531759,1727681447717,-500.0,0.00014123,2]
[339531760,1727681447727,-500.0,0.00014123,2]
[339531761,1727681447738,-500.0,0.00014123,2]
[339531762,1727681447748,-500.0,0.00014123,2]
[339531763,1727681447758,-500.0,0.00014123,2]
[339531764,1727681447768,-741.09,0.00014123,2]
[339531765,1727681447779,-500.0,0.00014123,2]
[339531766,1727681447789,-500.0,0.00014123,2]
[339531767,1727681447798,-500.0,0.00014123,2]
[339531768,1727681447808,-500.0,0.00014123,2]
[339531769,1727681447818,-500.0,0.00014123,2]
[339531770,1727681447828,-550.64489968,0.00014123,2]
[339531771,1727681447839,-500.0,0.00014123,2]
[339531772,1727681447848,-500.0,0.00014123,2]
[339531773,1727681447859,-500.0,0.00014123,2]
[339531774,1727681447869,-500.0,0.00014123,2]
[339531775,1727681447880,-614.66,0.00014123,2]
[339531776,1727681447890,-1847.34,0.00014123,2]
[339531777,1727681447900,-500.0,0.00014123,2]
[339531778,1727681447911,-500.0,0.00014123,2]
[339531779,1727681447920,-2789.9,0.00014123,2]
[339531780,1727681447930,-500.0,0.00014123,2]
[339531781,1727681447940,-500.0,0.00014123,2]
[339531782,1727681447951,-500.0,0.00014123,2]
[339531783,1727681447961,-500.0,0.00014123,2]
[339531784,1727681447972,-500.0,0.00014123,2]
[339531785,1727681447983,-500.0,0.00014123,2]
[339531786,1727681447993,-500.0,0.00014123,2]
[339531787,1727681448003,-500.0,0.00014123,2]
[339531788,1727681448013,-500.0,0.00014123,2]
[339531789,1727681448023,-584.05,0.00014123,2]
[339531790,1727681448035,-584.05,0.00014123,2]
[339531791,1727681448045,-584.05,0.00014123,2]
[339531792,1727681448056,-500.0,0.00014124,2]
[339531793,1727681448067,-500.0,0.00014124,2]
[339531794,1727681448338,-548.0861993,0.00014124,2]
[339531795,1727681448349,-500.0,0.00014124,2]
[339531796,1727681448358,-500.0,0.00014124,2]
[339531797,1727681448367,-500.0,0.00014124,2]
[339531798,1727681448377,-500.0,0.00014124,2]
[339531799,1727681448387,-500.0,0.00014124,2]
[339531800,1727681448396,-500.0,0.00014124,2]
[339531801,1727681448405,-500.0,0.00014124,2]
[339531802,1727681448415,-500.0,0.00014124,2]
[339531803,1727681448425,-500.0,0.00014124,2]
[339531804,1727681448434,-754.04,0.00014124,2]
[339531805,1727681448444,-754.04,0.00014124,2]
[339531806,1727681448453,-754.04,0.00014124,2]
[339531807,1727681448463,-500.0,0.00014124,2]
[339531808,1727681448472,-499.98866666,0.00014124,2]
[339531809,1727681448481,-500.0,0.00014124,2]
[339531810,1727681448490,-584.05,0.00014124,2]
[339531811,1727681448500,-500.0,0.00014125,2]
[339531812,1727681448510,-500.0,0.00014125,2]
[339531813,1727681448520,-500.0,0.00014125,2]
[339531814,1727681448529,-500.0,0.00014125,2]
[339531815,1727681448539,-500.0,0.00014125,2]
[339531816,1727681448548,-500.0,0.00014125,2]
[339531817,1727681448559,-500.0,0.00014125,2]
[339531818,1727681448569,-500.0,0.00014125,2]
[339531819,1727681448578,-500.0,0.00014125,2]
[339531820,1727681448587,-500.0,0.00014125,2]
[339531821,1727681448598,-500.0,0.00014125,2]
[339531822,1727681448607,-500.0,0.00014125,2]
[339531823,1727681448617,-500.0,0.00014125,2]
[339531824,1727681448626,-500.0,0.00014125,2]
[339531825,1727681448636,-500.0,0.00014125,2]
[339531826,1727681448646,-430.32229233,0.00014125,2]
[339531827,1727681448655,-754.04,0.00014125,2]
[339531828,1727681448664,-754.04,0.00014125,2]
[339531829,1727681448673,-754.04,0.00014125,2]
[339531830,1727681448682,-754.04,0.00014125,2]
[339531831,1727681448692,-754.04,0.00014125,2]
[339531832,1727681448701,-754.04,0.00014125,2]
[339531833,1727681448710,-275.12986737,0.00014125,2]
[339531834,1727681448720,-310.55093756,0.00014125,2]
[339531835,1727681448729,-584.05,0.00014125,2]
[339531836,1727681448739,-584.05,0.00014125,2]
[339531837,1727681448749,-584.05,0.00014125,2]
[339531838,1727681448759,-584.05,0.00014125,2]
[339531839,1727681448768,-584.05,0.00014125,2]
[339531840,1727681448777,-584.05,0.00014125,2]
[339531841,1727681448786,-584.05,0.00014125,2]
[339531842,1727681448796,-584.05,0.00014125,2]
[339531843,1727681448805,-584.05,0.00014125,2]
[339531844,1727681448815,-584.05,0.00014125,2]
[339531845,1727681448824,-584.05,0.00014125,2]
[339531846,1727681448834,-584.20528659,0.00014125,2]
[339531847,1727681448844,-500.0,0.00014168,2]
[339531848,1727681448853,-511.14866967,0.00014168,2]
[339531849,1727681448863,-754.04,0.00014168,2]
[339531850,1727681448874,-500.0,0.00014169,2]
[339531851,1727681448884,-500.0,0.00014169,2]
[339531852,1727681448893,-754.04,0.00014169,2]
[339531853,1727681448903,-754.04,0.00014169,2]
[339531854,1727681448912,-500.0,0.00014173,2]
[339531855,1727681448921,-502.66891151,0.00014173,2]
[339531856,1727681448930,-500.0,0.00014173,2]
[339531857,1727681448941,-502.66329194,0.00014173,2]
[339531858,1727681448951,-500.37616175,0.00014173,2]
[339531859,1727681448960,-500.0,0.00014173,2]
[339531860,1727681448970,-161.18330768,0.00014173,2]
[339531861,1727681448979,-500.0,0.00014173,2]
[339531862,1727681448989,-500.0,0.00014173,2]
[339531863,1727681448998,-500.0,0.00014173,2]
[339531864,1727681449008,-500.0,0.00014173,2]
[339531865,1727681449018,-500.0,0.00014173,2]
[339531866,1727681449027,-200.07428194,0.00014173,2]
[339531867,1727681449037,-500.0,0.00014173,2]
[339531868,1727681449047,-500.0,0.00014173,2]
[339531869,1727681449056,-500.0,0.00014173,2]
[339531870,1727681449066,-500.0,0.00014173,2]
[339531871,1727681449076,-500.0,0.00014173,2]
[339531872,1727681449086,-500.0,0.00014173,2]
[339531873,1727681449096,-500.0,0.00014173,2]
[339531874,1727681449106,-500.0,0.00014173,2]
[339531875,1727681449116,-562.82550138,0.00014173,2]
[339531876,1727681449126,-333.38514119,0.00014199,2]
[339531877,1727681449136,-150.112233,0.000142,2]
[339531878,1727681449146,-150.112233,0.000142,2]
[339531879,1727681449156,-150.112233,0.000142,2]
[339531880,1727681449166,-150.112233,0.000142,2]
[339531881,1727681449175,-150.112233,0.000142,2]
[339531882,1727681449185,-501.57471175,0.000142,2]
[339531883,1727681449196,-1000.0,0.000142,2]
[339531884,1727681449205,-1000.0,0.000142,2]
[339531885,1727681449215,-501.14209901,0.000142,2]
[339531886,1727681449224,-344.00890144,0.000142,2]
[339531887,1727681449234,-1000.0,0.000142,2]
[339531888,1727681449244,-614.56649614,0.000142,2]
[339531889,1727681449254,-1000.0,0.000142,2]
[339531890,1727681449263,-1000.0,0.000142,2]
[339531891,1727681449274,-1000.0,0.000142,2]
[339531892,1727681449283,-1000.0,0.000142,2]
[339531893,1727681449293,-1000.0,0.000142,2]
[339531894,1727681449303,-1585.20077211,0.00014227,2]
[339531895,1727681449312,-1500.0,0.00014227,2]
[339531896,1727681449321,-519.3136973,0.00014227,2]
[339531897,1727681449331,-1500.0,0.00014227,2]
[339531898,1727681449340,-1100.05750043,0.00014227,2]
[339531899,1727681449351,-1500.0,0.00014227,2]
[339531900,1727681449360,-1500.0,0.00014227,2]
[339531901,1727681449369,-1500.0,0.00014227,2]
[339531902,1727681449379,-2000.0,0.00014255,2]
[339531903,1727681449389,-2000.0,0.00014255,2]
[339531904,1727681449399,-1878.71936533,0.00014255,2]
[339531905,1727681449409,-2000.0,0.00014255,2]
[339531906,1727681449419,-2000.0,0.00014255,2]
[339531907,1727681449429,-5448.88015693,0.00014274,2]
[339531908,1727681449439,-2066.71973835,0.00014282,2]
[339531909,1727681449448,-2500.0,0.00014282,2]
[339531910,1727681449458,-2500.0,0.00014282,2]
[339531911,1727681449468,-2500.0,0.00014282,2]
[339531912,1727681449478,-150.112233,0.000143,2]
[339531913,1727681449488,-150.112233,0.000143,2]
[339531914,1727681449497,-150.112233,0.000143,2]
[339531915,1727681449507,-150.112233,0.000143,2]
[339531916,1727681449517,-150.112233,0.000143,2]
[339531917,1727681449526,-150.112233,0.000143,2]
[339531918,1727681449536,-3000.0,0.0001431,2]
[339531919,1727681449546,-403.72797516,0.0001431,2]
[339531920,1727681449556,-1644.05872861,0.0001431,2]
[339531921,1727681449566,-3258.05036457,0.00014337,2]
[339531922,1727681449577,-500.0,0.00014372,2]
[339531923,1727681449587,-500.0,0.00014372,2]
[339531924,1727681449599,-530.7,0.00014372,2]
[339531925,1727681449608,-500.0,0.00014373,2]
[339531926,1727681449617,-500.0,0.00014373,2]
[339531927,1727681449627,-500.0,0.00014373,2]
[339531928,1727681449636,-500.0,0.00014373,2]
[339531929,1727681449646,-500.51863415,0.00014373,2]
[339531930,1727681449655,-500.0,0.00014373,2]
[339531931,1727681449665,-500.0,0.00014373,2]
[339531932,1727681449675,-500.0,0.00014373,2]
[339531933,1727681449684,-500.0,0.00014373,2]
[339531934,1727681449694,-500.0,0.00014373,2]
[339531935,1727681449703,-151.75054518,0.00014373,2]
[339531936,1727681449713,-383.09768856,0.00014373,2]
[339531937,1727681449723,-500.0,0.00014373,2]
[339531938,1727681449732,-500.0,0.00014373,2]
[339531939,1727681449742,-500.0,0.00014373,2]
[339531940,1727681449751,-500.0,0.00014373,2]
[339531941,1727681449762,-500.0,0.00014373,2]
[339531942,1727681449772,-500.0,0.00014373,2]
[339531943,1727681449781,-507.70077374,0.00014373,2]
[339531944,1727681449791,-607.55261792,0.00014373,2]
[339531945,1727681449801,-500.0,0.00014373,2]
[339531946,1727681449810,-500.0,0.00014375,2]
[339531947,1727681449820,-1021.516581,0.00014384,2]
[339531948,1727681449829,-500.0,0.00014385,2]
[339531949,1727681449839,-500.0,0.00014385,2]
[339531950,1727681449849,-500.0,0.00014385,2]
[339531951,1727681449858,-500.0,0.00014385,2]
[339531952,1727681449868,-607.60163375,0.00014385,2]
[339531953,1727681449881,-530.7,0.00014385,2]
[339531954,1727681449891,-530.7,0.00014385,2]
[339531955,1727681449900,-530.7,0.00014385,2]
[339531956,1727681449910,-500.0,0.00014385,2]
[339531957,1727681449921,-500.0,0.00014385,2]
[339531958,1727681449930,-500.0,0.00014385,2]
[339531959,1727681449940,-500.0,0.00014385,2]
[339531960,1727681449950,-500.0,0.00014385,2]
[339531961,1727681449960,-500.0,0.00014385,2]
[339531962,1727681449969,-500.0,0.00014385,2]
[339531963,1727681449978,-500.0,0.00014385,2]
[339531964,1727681449988,-500.0,0.00014385,2]
[339531965,1727681449997,-500.0,0.00014385,2]
[339531966,1727681450007,-504.64391322,0.00014386,2]
[339531967,1727681450017,-500.0,0.00014386,2]
[339531968,1727681450026,-617.2132994,0.00014386,2]
[339531969,1727681450036,-500.0,0.00014386,2]
[339531970,1727681450046,-500.0,0.00014386,2]
[339531971,1727681450055,-500.0,0.00014386,2]
[339531972,1727681450065,-500.0,0.00014386,2]
[339531973,1727681450075,-500.0,0.00014386,2]
[339531974,1727681450084,-500.0,0.00014386,2]
[339531975,1727681450094,-606.96,0.00014386,2]
[339531976,1727681450104,-500.0,0.00014386,2]
[339531977,1727681450113,-500.0,0.00014386,2]
[339531978,1727681450123,-500.0,0.00014386,2]
[339531979,1727681450132,-882.08,0.00014386,2]
[339531980,1727681450142,-500.0,0.00014386,2]
[339531981,1727681450152,-619.22,0.00014386,2]
[339531982,1727681450162,-504.89026514,0.00014386,2]
[339531983,1727681450172,-500.0,0.00014386,2]
[339531984,1727681450181,-681.32,0.00014386,2]
[339531985,1727681450191,-644.5,0.00014386,2]
[339531986,1727681450200,-500.0,0.00014386,2]
[339531987,1727681450210,-500.0,0.00014386,2]
[339531988,1727681450219,-532.54,0.00014386,2]
[339531989,1727681450229,-500.0,0.00014386,2]
[339531990,1727681450238,-2595.01,0.00014386,2]
[339531991,1727681450248,-500.0,0.00014386,2]
[339531992,1727681450258,-500.0,0.00014386,2]
[339531993,1727681450267,-517.81193335,0.00014386,2]
[339531994,1727681450277,-500.0,0.00014386,2]
[339531995,1727681450287,-1069.08,0.00014386,2]
[339531996,1727681450296,-500.0,0.00014386,2]
[339531997,1727681450306,-1067.73,0.00014386,2]
[339531998,1727681450315,-500.0,0.00014386,2]
[339531999,1727681450325,-500.0,0.00014386,2]
[339532000,1727681450335,-500.0,0.00014386,2]
[339532001,1727681450345,-548.62,0.00014386,2]
[339532002,1727681450355,-500.0,0.00014386,2]
[339532003,1727681450365,-500.0,0.00014386,2]
[339532004,1727681450374,-500.0,0.00014386,2]
[339532005,1727681450383,-500.0,0.00014386,2]
[339532006,1727681450393,-500.0,0.00014386,2]
[339532007,1727681450403,-500.0,0.00014386,2]
[339532008,1727681450413,-283.15524528,0.00014386,2]
[339532009,1727681450422,-500.0,0.00014386,2]
[339532010,1727681450433,-500.0,0.00014386,2]
[339532011,1727681450443,-500.0,0.00014386,2]
[339532012,1727681450453,-500.0,0.00014386,2]
[339532013,1727681450463,-578.21,0.00014386,2]
[339532014,1727681450472,-500.0,0.00014386,2]
[339532015,1727681450482,-548.16,0.00014386,2]
[339532016,1727681450491,-500.0,0.00014386,2]
[339532017,1727681450501,-500.0,0.00014386,2]
[339532018,1727681450510,-500.0,0.00014386,2]
[339532019,1727681450520,-1777.39,0.00014386,2]
[339532020,1727681450529,-503.33247544,0.00014386,2]
[339532021,1727681450539,-757.67,0.00014386,2]
[339532022,1727681450548,-345.0,0.00014386,2]
[339532023,1727681450558,-151.0,0.00014386,2]
[339532024,1727681450567,-500.0,0.00014386,2]
[339532025,1727681450577,-647.44416965,0.00014386,2]
[339532026,1727681450586,-2008.58,0.00014386,2]
[339532027,1727681450599,-519.09,0.00014386,2]
[339532028,1727681450609,-500.0,0.00014386,2]
[339532029,1727681450619,-500.0,0.00014386,2]
[339532030,1727681450682,-634.32,0.00014386,2]
[339532031,1727681450692,-512.2443999,0.00014386,2]
[339532032,1727681450701,-500.0,0.00014386,2]
[339532033,1727681450711,-500.0,0.00014386,2]
[339532034,1727681450720,-249.371505,0.00014386,2]
[339532035,1727681450729,-536.79,0.00014386,2]
[339532036,1727681450738,-500.0,0.00014386,2]
[339532037,1727681450747,-500.0,0.00014386,2]
[339532038,1727681450756,-249.371505,0.00014386,2]
[339532039,1727681450766,-500.0,0.00014386,2]
[339532040,1727681450775,-500.0,0.00014386,2]
[339532041,1727681450785,-500.0,0.00014386,2]
[339532042,1727681450794,-500.0,0.00014386,2]
[339532043,1727681450804,-2433.54,0.00014386,2]
[339532044,1727681450814,-549.2,0.00014386,2]
[339532045,1727681450824,-29674.95,0.00014386,2]
[339532046,1727681450834,-453.10576072,0.00014386,2]
[339532047,1727681450844,-500.0,0.00014386,2]
[339532048,1727681450854,-500.0,0.00014386,2]
[339532049,1727681450864,-151.0,0.00014386,2]
[339532050,1727681450878,-980.355677,0.00014386,2]
[339532051,1727681450888,-1320.62,0.00014386,2]
[339532052,1727681450897,-4317.23,0.00014386,2]
[339532053,1727681450907,-500.0,0.00014386,2]
[339532054,1727681450917,-500.0,0.00014386,2]
[339532055,1727681450926,-1640.88,0.00014386,2]
[339532056,1727681450936,-500.0,0.00014386,2]
[339532057,1727681450945,-980.355677,0.00014386,2]
[339532058,1727681450954,-500.0,0.00014386,2]
[339532059,1727681450964,-977.41,0.00014386,2]
[339532060,1727681450974,-659.94,0.00014386,2]
[339532061,1727681450983,-500.0,0.00014386,2]
[339532062,1727681450993,-151.0,0.00014386,2]
[339532063,1727681451002,-225.05199254,0.00014386,2]
[339532064,1727681451012,-151.0,0.00014386,2]
[339532065,1727681451022,-500.0,0.00014386,2]
[339532066,1727681451031,-500.0,0.00014386,2]
[339532067,1727681451041,-500.0,0.00014386,2]
[339532068,1727681451050,-500.0,0.00014386,2]
[339532069,1727681451060,-500.0,0.00014386,2]
[339532070,1727681451070,-151.0,0.00014386,2]
[339532071,1727681451079,-151.0,0.00014386,2]
[339532072,1727681451089,-154.395563,0.00014386,2]
[339532073,1727681451099,-507.85898462,0.00014386,2]
[339532074,1727681451108,-500.0,0.00014386,2]
[339532075,1727681451118,-500.0,0.00014386,2]
[339532076,1727681451127,-542.53,0.00014386,2]
[339532077,1727681451137,-500.0,0.00014386,2]
[339532078,1727681451147,-1987.518951,0.00014386,2]
[339532079,1727681451157,-500.0,0.00014386,2]
[339532080,1727681451166,-1804.61,0.00014386,2]
[339532081,1727681451176,-500.0,0.00014386,2]
[339532082,1727681451186,-1987.518951,0.00014386,2]
[339532083,1727681451195,-500.0,0.00014386,2]
[339532084,1727681451204,-1742.13,0.00014386,2]
[339532085,1727681451214,-500.0,0.00014386,2]
[339532086,1727681451224,-500.0,0.00014386,2]
[339532087,1727681451233,-500.0,0.00014386,2]
[339532088,1727681451243,-500.0,0.00014386,2]
[339532089,1727681451253,-500.0,0.00014386,2]
[339532090,1727681451263,-500.0,0.00014386,2]
[339532091,1727681451273,-500.0,0.00014386,2]
[339532092,1727681451283,-500.0,0.00014386,2]
[339532093,1727681451293,-177.746097,0.00014386,2]
[339532094,1727681451303,-680.83,0.00014386,2]
[339532095,1727681451313,-500.0,0.00014386,2]
[339532096,1727681451323,-720.74,0.00014386,2]
[339532097,1727681451333,-500.0,0.00014386,2]
[339532098,1727681451344,-611.74403814,0.00014386,2]
[339532099,1727681451354,-177.746097,0.00014386,2]
[339532100,1727681451364,-492.93015338,0.00014386,2]
[339532101,1727681451374,-500.0,0.00014386,2]
[339532102,1727681451384,-654.13,0.00014386,2]
[339532103,1727681451394,-500.0,0.00014386,2]
[339532104,1727681451404,-500.0,0.00014386,2]
[339532105,1727681451413,-500.0,0.00014386,2]
[339532106,1727681451423,-500.0,0.00014386,2]
[339532107,1727681451432,-500.0,0.00014386,2]
[339532108,1727681451441,-500.0,0.00014386,2]
[339532109,1727681451450,-666.8,0.00014386,2]
[339532110,1727681451460,-713.05771,0.00014386,2]
[339532111,1727681451470,-734.87,0.00014386,2]
[339532112,1727681451480,-500.0,0.00014386,2]
[339532113,1727681451489,-713.05771,0.00014386,2]
[339532114,1727681451499,-500.0,0.00014386,2]
[339532115,1727681451508,-500.0,0.00014386,2]
[339532116,1727681451517,-500.0,0.00014386,2]
[339532117,1727681451527,-500.0,0.00014386,2]
[339532118,1727681451536,-500.0,0.00014386,2]
[339532119,1727681451546,-500.0,0.00014386,2]
[339532120,1727681451555,-500.0,0.00014386,2]
[339532121,1727681451565,-500.0,0.00014386,2]
[339532122,1727681451575,-562.16,0.00014386,2]
[339532123,1727681451585,-500.0,0.00014386,2]
[339532124,1727681451596,-500.0,0.00014386,2]
[339532125,1727681451605,-500.0,0.00014386,2]
[339532126,1727681451615,-322.567389,0.00014386,2]
[339532127,1727681451624,-672.32,0.00014386,2]
[339532128,1727681451633,-565.82,0.00014386,2]